[Event "Israel Team Ch Under 18"]
[Site "Jerusalem"]
[Date "2017.08.15"]
[Round "6"]
[White "Tillinger, Aviv"]
[Black "Chachashvili, Zuri"]
[Result "0-1"]
[ECO "B92"]
[WhiteElo "1815"]
[BlackElo "1911"]
[Annotator "NA RC"]
[PlyCount "126"]
[EventDate "2017.??.??"]
[EventType "swiss"]
[EventCountry "ISR"]
[SourceTitle "playchess.com"]
[Source "ChessBase"]
[SourceQuality "1"]
[TimeControl "40/5400+30:1800+30"]

{[%evp 10,87,16,28,32767,32767,32767,32767,27,15,10,-32,-12,-35,25,-24,8,-61,-42,-43,-25,-63,-37,-21,0,0,41,31,41,24,37,38,37,10,42,19,13,14,15,13,25,16,26,0,21,34,25,25,62,43,52,43,47,48,60,51,180,60,54,57,32767,32767,32767,32767,32767,32767,32767,32767,32767,32767,32767,32767,32767,32767,32767,32767,32767,-50,-44,-85]} 1. e4 {[%emt 0:40:13]} c5 {[%emt 0:41:40]} 2. Nf3 {[%emt 0:00:22]} d6 {[%emt 0:01:20]} 3. d4 {[%emt 0:00:22]} cxd4 {[%emt 0:01:03]} 4. Nxd4 {[%emt 0:00:23]} Nf6 {[%emt 0:01:19]} 5. Nc3 {[%emt 0:00:22]} a6 {[%emt 0:01:21]} 6. Be2 {[%emt 0:00:22]} e5 {[%emt 0:02:04]} 7. Nb3 {[%emt 0:00:23]} Be6 {[%emt 0:00:46]} 8. Be3 {[%emt 0:00:34]} Nbd7 {[%emt 0:01:58]} 9. Qd3 {[%emt 0:00:29]} Rc8 {[%emt 0:03:21]} 10. Nd5 {[%emt 0:04:55]} Bxd5 {[%emt 0:01:18]} 11. exd5 {[%emt 0:00:24]} Be7 {[%emt 0:01:08]} 12. O-O {[%emt 0:00:34] LiveBook: 3 Games B92: Sicilian Najdorf: 6 Be2} O-O {[%emt 0:01:12]} 13. f4 $146 {[%emt 0:09:17]} ({Predecessor:} 13. c4 $11 Ne8 14. Qd2 b6 15. Rac1 a5 16. Na1 g6 17. b4 Ng7 18. bxa5 bxa5 19. Bd3 Nc5 20. Bc2 a4 21. Rb1 {0-1 (66) Carlsen,M (2853)-Grischuk,A (2771) Saint Louis 2015}) 13... exf4 {[%emt 0:06:06]} 14. Bxf4 {[%emt 0:00:31]} Nb6 {[%emt 0:05:15]} 15. Bf3 {[%emt 0:02:29]} Qc7 {[%emt 0:01:01]} 16. c3 {[%emt 0:01:47]} Qc4 {[%emt 0:02:52]} 17. Qxc4 {[%emt 0:04:29]} Rxc4 {[%emt 0:03:12]} 18. Bg3 {[%emt 0:03:52]} Rc7 {[%emt 0:04:24]} 19. Rfe1 {[%emt 0:08:26]} Nc4 {[%emt 0:03:37]} 20. Re2 {[%emt 0:01:00]} Rfc8 {[%emt 0:02:22]} 21. Rae1 {[%emt 0:00:41]} Bf8 {[%emt 0:00:40]} 22. Nd4 {[%emt 0:01:21]} g6 {[%emt 0:00:52]} 23. b3 {[%emt 0:08:59]} Ne5 {[%emt 0:01:12]} 24. c4 {[%emt 0:00:29]} Nd3 {[%emt 0:01:46]} 25. Rd1 {[%emt 0:01:15]} Nc5 {[%emt 0:01:17]} 26. Rde1 {[%emt 0:02:04]} (26. Bh4 $5 {[%cal Rh4f6]} Bg7 27. Bg3 $16) 26... Nd3 {[%emt 0:00:31]} 27. Rf1 {[%emt 0:04:00]} h5 {[%emt 0:01:52]} 28. Re3 {[%emt 0:01:27]} Ne5 {[%emt 0:02:16]} 29. Bxe5 {[%emt 0:02:27]} (29. Rxe5 $5 dxe5 30. Bxe5 $16) 29... dxe5 {[%emt 0:00:28]} 30. Rxe5 {[%emt 0:00:21]} Bc5 {[%emt 0:00:40]} 31. Rd1 {[%emt 0:00:21]} Nd7 {[%emt 0:02:07]} 32. Ree1 {[%emt 0:00:50]} Kf8 {[%emt 0:01:22] [#]} (32... Nf6 $14) 33. Kf1 {[%emt 0:00:27]} (33. d6 $1 $18 {[%cal Rd6c7]} Bxd6 {[#]} 34. Ne6+ $1 {[%mdl 512]} fxe6 35. Rxd6) 33... Nf6 {[%emt 0:00:59]} 34. Ke2 {[%emt 0:00:40]} Re8+ {[%emt 0:00:49]} 35. Kd3 {[%emt 0:00:21]} Rd8 {[%emt 0:00:30]} 36. Nc2 {[%emt 0:00:46]} Bd6 {[%emt 0:00:24]} 37. g3 {[%emt 0:00:22]} Nd7 {[%emt 0:00:39]} 38. Bg2 {[%emt 0:00:36]} Ne5+ {[%emt 0:00:25]} 39. Kc3 {[%emt 0:00:24]} b5 {[%emt 0:00:31]} 40. Ne3 {[%emt 0:00:24]} Rdc8 {[%emt 0:31:02]} 41. Rd4 {[%emt 0:30:37]} Kg7 {[%emt 0:00:53]} 42. Bh3 {[%emt 0:00:25]} Rb8 {[%emt 0:00:29]} 43. Rf1 {[%emt 0:00:30]} Re8 {[%emt 0:01:05]} 44. Bg2 $17 {[%emt 0:00:45]} Nd7 {[%emt 0:01:06]} 45. Rd3 {[%emt 0:00:30]} Nc5 {[%emt 0:00:25]} 46. Rfd1 {[%emt 0:00:23]} Nxd3 47. Kxd3 {[%emt 0:00:26]} Rd8 {[%emt 0:01:05]} 48. Rc1 {[%emt 0:00:30]} bxc4+ {[%emt 0:00:39]} 49. Nxc4 {[%emt 0:00:39]} Rb8 {[%emt 0:00:55]} 50. Rf1 {[%emt 0:00:28]} Rd8 {[%emt 0:00:26]} 51. Re1 {[%emt 0:00:32]} Bb4 {[%emt 0:00:26]} 52. Re4 {[%emt 0:00:25]} Rxd5+ {[%emt 0:00:29]} 53. Rd4 {[%emt 0:00:20]} Rxd4+ {[%emt 0:00:24]} 54. Kxd4 {[%emt 0:00:21]} Rd7+ {[%emt 0:00:27]} 55. Bd5 {[%emt 0:00:33]} Kf6 {[%emt 0:00:39]} 56. Ne3 {[%emt 0:00:25]} Be1 {[%emt 0:00:35]} 57. Kc4 {[%emt 0:00:54]} Ke5 {[%emt 0:00:29]} 58. Bf3 {[%emt 0:00:23]} Rc7+ {[%emt 0:00:41]} 59. Kd3 {[%emt 0:00:20]} f5 {[%emt 0:00:41]} 60. Nc4+ {[%emt 0:00:21]} Ke6 {[%emt 0:00:24]} 61. Ke3 {[%emt 0:00:25]} Bb4 {[%emt 0:00:23]} 62. Kf4 {[%emt 0:00:23]} Rxc4+ {[%emt 0:00:28]} 63. bxc4 {[%emt 0:00:22]} Bd2# {[%emt 0:00:22]} 0-1

[Event "Israel Team Ch Under 18"]
[Site "Jerusalem"]
[Date "2017.08.15"]
[Round "6"]
[White "Zhimalov, Adam"]
[Black "Kadria, Avi"]
[Result "0-1"]
[ECO "A06"]
[WhiteElo "1784"]
[BlackElo "1729"]
[Annotator "NA RC"]
[PlyCount "65"]
[EventDate "2017.??.??"]
[EventType "swiss"]
[EventCountry "ISR"]
[SourceTitle "playchess.com"]
[Source "ChessBase"]
[SourceQuality "1"]
[TimeControl "40/5400+30:1800+30"]

1. Nf3 {[%emt 0:40:11]} d5 {[%emt 0:42:55]} 2. g3 {[%emt 0:00:28]} Bg4 {[%emt 0:01:06]} 3. Bg2 {[%emt 0:00:28]} Nf6 {[%emt 0:01:09]} 4. d3 {[%emt 0:00:42]} Nc6 {[%emt 0:01:32] LiveBook: 6 Games} 5. c3 {[%emt 0:00:27]} e5 {[%emt 0:03:03]} 6. Nbd2 $11 {[%emt 0:02:16]} Qd7 {[%emt 0:03:56]} 7. b4 {[%emt 0:04:05]} a6 {[%emt 0:01:25]} 8. a4 {[%emt 0:01:31]} Bh3 {[%emt 0:01:44]} 9. O-O {[%emt 0:02:01]} h5 {[%emt 0:05:27]} 10. Bb2 {[%emt 0:05:32]} Bd6 {[%emt 0:12:24]} 11. b5 {[%emt 0:17:20]} Nd8 {[%emt 0:01:08]} 12. e4 {[%emt 0:01:21]} h4 {[%emt 0:06:30]} 13. Bxh3 {[%emt 0:01:59]} Qxh3 {[%emt 0:00:23]} 14. Ng5 {[%emt 0:00:33]} Qd7 {[%emt 0:00:33]} 15. exd5 {[%emt 0:00:49]} Nxd5 {[%emt 0:01:19]} 16. Nde4 {[%emt 0:12:41]} hxg3 17. fxg3 {[%emt 0:03:40]} Ne3 {[%emt 0:02:26]} 18. Qf3 {[%emt 0:00:22]} Nxf1 {[%emt 0:00:56]} 19. Rxf1 {[%emt 0:00:24]} f6 {[%emt 0:01:44]} 20. Nxd6+ {[%emt 0:00:55]} cxd6 {[%emt 0:00:25]} 21. Ne4 {[%emt 0:01:17]} axb5 {[%emt 0:01:02]} 22. axb5 {[%emt 0:00:55]} d5 {[%emt 0:00:43]} 23. Nxf6+ {[%emt 0:01:11]} gxf6 {[%emt 0:01:06]} 24. Qxf6 {[%emt 0:00:21]} Rg8 {[%emt 0:02:31]} 25. Qxe5+ {[%emt 0:00:29]} Qe6 {[%emt 0:00:37]} 26. Qh5+ {[%emt 0:00:37]} Kd7 {[%emt 0:01:16]} 27. Qh7+ {[%emt 0:00:26]} Kc8 {[%emt 0:00:55]} 28. c4 {[%emt 0:00:42]} dxc4 {[%emt 0:03:41]} 29. dxc4 {[%emt 0:00:32]} Re8 {[%emt 0:00:34]} 30. Qh5 {[%emt 0:00:29]} Qe3+ {[%emt 0:00:44]} 31. Kg2 {[%emt 0:00:22]} Qe2+ {[%emt 0:00:25]} 32. Kh1 Qe3 33. Qc5+ {Ra2 Qh5} 0-1

[Event "Israel Team Ch Under 18"]
[Site "Jerusalem"]
[Date "2017.08.15"]
[Round "6"]
[White "Sonzenevich, Matan"]
[Black "Shohat, Yotam"]
[Result "1-0"]
[ECO "C00"]
[WhiteElo "1734"]
[BlackElo "2041"]
[Annotator "NA RC"]
[PlyCount "35"]
[EventDate "2017.??.??"]
[EventType "swiss"]
[EventCountry "ISR"]
[SourceTitle "playchess.com"]
[Source "ChessBase"]
[SourceQuality "1"]
[TimeControl "40/5400+30:1800+30"]

{[%evp 13,34,10,57,35,66,39,46,46,56,60,231,230,699,740,32767,32767,32767,32767,1024,1093,29995,29996,29996]} 1. e4 e6 2. Nf3 d5 3. e5 c5 4. b4 Nc6 5. bxc5 Bxc5 6. d4 Bb6 7. c3 Bd7 8. Bd3 Rc8 9. O-O Nge7 10. Na3 a6 11. Bd2 O-O $2 {[#]} (11... h6 $14) 12. Bxh7+ $1 Kh8 $2 (12... Kxh7 13. Ng5+ Kg6) 13. Ng5 g6 14. Qf3 Nf5 15. g4 Nh6 16. Qh3 Kg7 {[#]} 17. Nxe6+ fxe6 18. Qxh6+ 1-0

[Event "Israel Team Ch Under 18"]
[Site "Jerusalem"]
[Date "2017.08.15"]
[Round "6"]
[White "Kotler, Yiftah"]
[Black "Feldman, Antony"]
[Result "1-0"]
[ECO "B06"]
[WhiteElo "1722"]
[BlackElo "1975"]
[Annotator "NA RC"]
[PlyCount "63"]
[EventDate "2017.??.??"]
[EventType "swiss"]
[EventCountry "ISR"]
[SourceTitle "playchess.com"]
[Source "ChessBase"]
[SourceQuality "1"]
[TimeControl "40/5400+30:1800+30"]

1. e4 {[%emt 0:40:15]} g6 {[%emt 0:40:41]} 2. d4 {[%emt 0:00:39]} Bg7 {[%emt 0:00:22]} 3. Nf3 {[%emt 0:00:28]} d6 {[%emt 0:00:29]} 4. c4 {[%emt 0:00:57]} Bg4 {[%emt 0:01:19]} 5. Be2 {[%emt 0:01:14]} Nc6 {[%emt 0:04:05]} 6. Be3 {[%emt 0:03:42] LiveBook: 209 Games} Nf6 {[%emt 0:08:31]} 7. Nc3 {[%emt 0:01:02]} O-O {[%emt 0:00:25]} 8. O-O {[%emt 0:01:09]} e5 {[%emt 0:02:55]} 9. d5 {[%emt 0:00:36]} Ne7 {[%emt 0:00:30]} 10. b4 {[%emt 0:01:32] E97: King's Indian: Classical Main Line (6...e5 7 0-0 Nc6): 8 Be3 and 8 d5 Ne7, not 9 Ne1} Nd7 {[%emt 0:01:26]} 11. Rb1 $146 {[%emt 0:04:34]} ({Find the theoretical novelty and annotate with similar games:} 11. Qd2 Nb6 12. c5 Bxf3 13. cxb6 Bxe2 14. bxc7 Qxc7 15. Nxe2 f5 16. Rac1 Qd7 17. f3 a6 {½-½ (43) Trushelyov,V (2354)-Khusenkhojaev,M (2373) Peterhof 2009}) 11... h6 {[%emt 0:01:56]} 12. Nd2 {[%emt 0:00:53]} Bxe2 {[%emt 0:00:24]} 13. Qxe2 {[%emt 0:00:33]} f5 {[%emt 0:00:26]} 14. f3 {[%emt 0:00:32]} g5 {[%emt 0:01:29]} 15. Rfc1 {[%emt 0:03:47]} Rf6 {[%emt 0:08:17]} 16. c5 {[%emt 0:03:43]} a6 {[%emt 0:07:55]} 17. Nc4 {[%emt 0:02:03]} f4 {[%emt 0:09:37]} 18. Bf2 {[%emt 0:00:35]} Rg6 {[%emt 0:00:22]} 19. Na4 {[%emt 0:06:10]} Nc8 {[%emt 0:01:45]} 20. Na5 {[%emt 0:02:44]} b5 {[%emt 0:03:52]} 21. cxb6 {[%emt 0:02:26]} Ncxb6 {[%emt 0:00:23]} 22. Nxb6 {[%emt 0:00:35]} Nxb6 {[%emt 0:01:28]} 23. Rc6 {[%emt 0:00:35]} Bf8 {[%emt 0:01:23]} 24. Rbc1 {[%emt 0:00:52]} Rg7 {[%emt 0:00:21]} 25. Qc2 {[%emt 0:01:18]} g4 {[%emt 0:01:46]} 26. Rxc7 {[%emt 0:00:54]} Nd7 {[%emt 0:00:47]} 27. Kf1 {[%emt 0:02:15]} Qg5 {[%emt 0:00:26]} 28. Qc6 {[%emt 0:00:57]} Rd8 {[%emt 0:00:56]} 29. Nb7 {[%emt 0:01:06]} Qh5 {[%emt 0:00:32]} 30. Nxd8 {[%emt 0:01:49]} gxf3 {[%emt 0:00:22]} 31. Rxd7 {[%emt 0:02:30]} fxg2+ {[%emt 0:00:35]} 32. Kg1 {[%emt 0:00:33]} 1-0

[Event "Israel Team Ch Under 18"]
[Site "Jerusalem"]
[Date "2017.08.15"]
[Round "6"]
[White "Shetah, Roi"]
[Black "Stolyarsky, Yegor"]
[Result "0-1"]
[ECO "C54"]
[WhiteElo "1647"]
[BlackElo "1914"]
[Annotator "NA RC"]
[PlyCount "64"]
[EventDate "2017.??.??"]
[EventType "swiss"]
[EventCountry "ISR"]
[SourceTitle "playchess.com"]
[Source "ChessBase"]
[SourceQuality "1"]
[TimeControl "40/5400+30:1800+30"]

{[%evp 13,61,11,16,16,8,0,16,17,18,16,32767,18,25,3,0,32767,32767,32767,32767,-80,-67,-58,-90,-103,-105,-95,-81,-110,-87,-150,-171,-224,-177,-254,-244,-244,-194,-219,-246,-247,-243,-315,-374,-403,-498,-477,-262,-293,-297,-362]} 1. e4 {[%emt 0:40:13]} e5 {[%emt 0:41:36]} 2. Nf3 {[%emt 0:00:26]} Nc6 {[%emt 0:00:38]} 3. Bc4 {[%emt 0:00:33]} Bc5 {[%emt 0:00:45]} 4. c3 {[%emt 0:00:34]} Nf6 {[%emt 0:00:51]} 5. d3 {[%emt 0:00:26]} d6 {[%emt 0:00:38]} 6. O-O {[%emt 0:00:44]} Bb6 {[%emt 0:00:47]} 7. h3 {[%emt 0:01:29]} h6 {[%emt 0:00:39]} 8. Nbd2 {[%emt 0:00:34] C54: Giuoco Piano: 4 c3 Nf6, main lines with 5 d4 and 5 d3} (8. Re1 O-O 9. a4 a6 10. Nbd2 Ne7 11. d4 exd4 12. cxd4 d5 13. e5 Nh5 14. Bf1 Nf4 15. a5 Ba7 {0-1 (44) Fressinet,L (2712)-Hammer,J (2665) Oslo 2015}) 8... Ne7 {[%emt 0:01:20]} 9. Re1 {[%emt 0:02:21]} (9. a4 $5 {[%cal Ra4a5]} a5 10. Bb3 $11) 9... Ng6 {[%emt 0:01:45]} 10. Nf1 {[%emt 0:01:20]} O-O {[%emt 0:00:49]} 11. Ng3 {[%emt 0:00:25]} c6 {[%emt 0:00:48]} 12. Bb3 {[%emt 0:04:57] LiveBook: 21 Games} d5 {[%emt 0:00:49]} 13. exd5 {[%emt 0:02:32]} Nxd5 {[%emt 0:00:44]} 14. Nxe5 $146 {[%emt 0:04:43]} ({Predecessor:} 14. d4 exd4 15. Nxd4 Nc7 16. Qh5 Bxd4 17. cxd4 Nd5 18. Bxd5 Qxd5 19. Qxd5 cxd5 20. Bd2 {½-½ (20) Dubov,D (2421)-Simacek,P (2476) Olomouc 2009}) 14... Nxe5 {[%emt 0:00:45]} 15. Rxe5 {[%emt 0:00:32]} Bxf2+ {[%emt 0:00:46]} 16. Kxf2 {[%emt 0:01:43]} Qf6+ {[%emt 0:00:42]} 17. Qf3 {[%emt 0:02:28]} Qxe5 {[%emt 0:00:41]} 18. d4 {[%emt 0:02:37]} Qd6 {[%emt 0:01:40]} 19. Bd2 {[%emt 0:03:37]} Bd7 {[%emt 0:02:43]} 20. Ne4 {[%emt 0:07:52]} Qg6 {[%emt 0:03:41]} 21. c4 {[%emt 0:04:20]} (21. Nc5 $142 Be6 22. Kg1) 21... Nc7 {[%emt 0:05:53]} 22. Bb4 {[%emt 0:03:09]} (22. Nc5 $17 Bf5 23. g4) 22... Rfd8 {[%emt 0:02:07]} 23. Nd6 {[%emt 0:04:28]} (23. Re1 $142) 23... a5 {[%emt 0:05:40]} 24. Ba3 {[%emt 0:02:43]} Ne6 {[%emt 0:03:23]} 25. Nf5 {[%emt 0:01:19]} Kh8 {[%emt 0:01:32]} 26. h4 {[%emt 0:03:48]} Ng5 {[%emt 0:07:45]} 27. hxg5 {[%emt 0:00:53]} Bxf5 {[%emt 0:00:50]} 28. gxh6 {[%emt 0:01:13]} Rxd4 {[%emt 0:02:23]} 29. hxg7+ {[%emt 0:01:03]} Kxg7 {[%emt 0:02:00]} 30. Qc3 {[%emt 0:01:13]} Qf6 $19 {[%emt 0:01:33]} 31. Be7 {[%emt 0:00:21]} Rf4+ {[%emt 0:02:45]} 32. Ke3 {[%emt 0:00:27]} Qxc3+ {[%emt 0:00:47] Kd4} 0-1

[Event "Israel Team Ch Under 18"]
[Site "Jerusalem"]
[Date "2017.08.15"]
[Round "6"]
[White "Zach, Asif"]
[Black "Gitzman, Michael"]
[Result "1-0"]
[ECO "D35"]
[WhiteElo "1600"]
[BlackElo "1912"]
[Annotator "NA RC"]
[PlyCount "57"]
[EventDate "2017.??.??"]
[EventType "swiss"]
[EventCountry "ISR"]
[SourceTitle "playchess.com"]
[Source "ChessBase"]
[SourceQuality "1"]
[TimeControl "40/5400+30:1800+30"]

{[%evp 8,52,0,10,18,17,24,16,27,25,37,36,85,22,23,27,26,31,28,12,33,0,12,0,-3,-31,-52,-91,106,31,45,41,27,25,72,58,82,68,158,160,231,222,321,320,300,425,411]} 1. d4 e6 2. c4 d5 3. Nc3 Nf6 4. cxd5 exd5 5. Bg5 Be7 6. e3 O-O 7. Bd3 c5 {LiveBook: 9 Games D35: Queen's Gambit Declined: Exchange Variation} (7... Nbd7 8. Nf3 c6 9. Qc2 Re8 10. h3 Nf8 11. Bf4 Ng6 12. Bh2 Bd6 13. Bxd6 Qxd6 14. O-O-O Bd7 15. Kb1 Rac8 16. g4 Qe7 17. Rhe1 c5 18. g5 Nh5 19. Nxd5 Qd6 20. dxc5 Rxc5 21. Bxg6 Rxc2 22. Nf6+ Nxf6 23. Rxd6 Rxf2 24. gxf6 hxg6 25. Rxd7 Rxf3 26. Rxb7 gxf6 27. Rxa7 {½-½ (58) Dreev,A (2651)-Akobian,V (2645) chess.com INT 2017}) 8. Nge2 Nc6 9. O-O Be6 $146 ({Predecessor:} 9... cxd4 10. exd4 Be6 11. Rc1 Rc8 12. Bb1 Qd7 13. Qd3 Nb4 14. Qb5 Qxb5 15. Nxb5 Nc6 16. Nbc3 Rfe8 17. f3 a6 18. Na4 {1-0 (53) Figura,A (2193)-Hohn,A (2139) Berlin 2005}) 10. Rc1 cxd4 11. Nxd4 Nxd4 12. exd4 Rc8 13. Qd2 ({Reject} 13. Bxf6 Bxf6 14. Qf3 g6 $15) 13... Nd7 14. Bf4 Nb6 15. Nb5 Nc4 16. Qe2 (16. Bxc4 $5 Rxc4 17. Rxc4 dxc4 18. Re1 $11) 16... Qb6 17. Nc7 Bf6 $2 {[#]} (17... Rxc7 $17 {and life is bright.} 18. Bxc7 Qxc7) 18. Bxc4 ({Weaker is} 18. Nxe6 fxe6 19. Bxc4 (19. Qh5 g6 $15) 19... dxc4 $11) (18. b3 $1 $16 {[%cal Rb3c4]} Rxc7 19. Bxc7 (19. bxc4 Rxc4 20. Bxc4 dxc4 $11) 19... Qxc7 20. bxc4) 18... dxc4 19. d5 $1 Bd7 20. Qxc4 a6 21. a4 Bd8 22. d6 Bc6 (22... Qxb2 $142 23. Qe4 Bh4) 23. Be5 Bd7 (23... Qa5 {was necessary.} 24. Qd4 f6) 24. Qc3 f6 $18 25. a5 Qa7 26. Bd4 Qb8 27. Bb6 Kh8 28. Qd4 Bxc7 29. dxc7 1-0

[Event "Israel Team Ch Under 18"]
[Site "Jerusalem"]
[Date "2017.08.15"]
[Round "7"]
[White "Hochman, Elnatan"]
[Black "Kupervaser, Erez"]
[Result "1-0"]
[ECO "E70"]
[WhiteElo "2097"]
[BlackElo "1868"]
[Annotator "NA RC"]
[PlyCount "63"]
[EventDate "2017.??.??"]
[EventType "swiss"]
[EventCountry "ISR"]
[SourceTitle "playchess.com"]
[Source "ChessBase"]
[SourceQuality "1"]
[TimeControl "40/5400+30:1800+30"]

1. d4 {[%emt 0:40:13]} Nf6 {[%emt 0:40:46]} 2. c4 {[%emt 0:00:28]} g6 {[%emt 0:00:24]} 3. Nc3 {[%emt 0:00:25]} Bg7 {[%emt 0:00:27]} 4. e4 {[%emt 0:00:23]} O-O {[%emt 0:00:26]} 5. Nf3 {[%emt 0:00:29]} c6 {[%emt 0:00:41]} 6. Be2 {[%emt 0:01:08]} d5 {[%emt 0:00:25]} 7. e5 {[%emt 0:00:58]} Ne8 {[%emt 0:01:32] E70: King's Indian: Miscellaneous lines with 4 e4, including 5 Nge2 and 5 Bd3 0-0 6 Nge2} 8. O-O {[%emt 0:00:27]} Nc7 {[%emt 0:00:30]} 9. h3 {[%emt 0:02:54]} dxc4 {[%emt 0:01:27]} 10. Bxc4 {[%emt 0:00:33]} Nd7 {[%emt 0:00:25]} 11. Bb3 $146 {[%emt 0:03:07]} ({Predecessor:} 11. Be3 Nb6 12. Bb3 Be6 13. Bc2 f6 14. Re1 Kh8 15. Ne4 {½-½ (81) Inarkiev,E (2668)-Jobava,B (2673) Minsk 2015}) 11... Nb6 {[%emt 0:00:29]} 12. Nh2 {[%emt 0:01:49]} Be6 {[%emt 0:00:47]} 13. Ng4 {[%emt 0:03:06]} Bxb3 {[%emt 0:01:01]} 14. axb3 {[%emt 0:04:55]} Ne6 {[%emt 0:03:31]} 15. Be3 {[%emt 0:02:31]} Nd5 {[%emt 0:00:29]} 16. Qf3 {[%emt 0:02:33]} h5 {[%emt 0:07:17]} 17. Nh2 {[%emt 0:01:59]} Nxe3 {[%emt 0:00:44]} 18. fxe3 {[%emt 0:00:37]} Qb6 {[%emt 0:04:54]} 19. Ra3 {[%emt 0:05:13]} Rad8 {[%emt 0:03:38]} 20. Rf2 {[%emt 0:01:40]} Nc7 {[%emt 0:03:08]} 21. Nf1 {[%emt 0:01:21]} Nd5 {[%emt 0:04:07]} 22. Nd2 {[%emt 0:01:55]} Bh6 {[%emt 0:02:38]} 23. Nc4 {[%emt 0:00:51]} Qb4 {[%emt 0:02:16]} 24. Nd1 {[%emt 0:13:25]} (24. Ra4 $11 Qxb3 25. Na5) 24... b5 {[%emt 0:04:14]} (24... a6 $17) 25. Na5 $1 {[%emt 0:00:41]} Rc8 {[%emt 0:02:01]} 26. Nb7 $17 {[%emt 0:01:52]} (26. Re2 $11) 26... Nxe3 {[%emt 0:00:54]} 27. Nxe3 {[%emt 0:00:53]} Qxd4 {[%emt 0:00:35]} 28. Nf1 {[%emt 0:02:30]} Qxe5 {[%emt 0:00:38]} 29. b4 {[%emt 0:00:37]} Qe1 {[%emt 0:01:28]} 30. Nc5 {[%emt 0:01:38]} Rcd8 {[%emt 0:01:23]} 31. Rxa7 {[%emt 0:01:01]} Rd1 {[%emt 0:00:24]} 32. Nd3 1-0

[Event "Israel Team Ch Under 18"]
[Site "Jerusalem"]
[Date "2017.08.15"]
[Round "7"]
[White "Zhimalov, Adam"]
[Black "Gabizon, Eyal"]
[Result "1/2-1/2"]
[ECO "A77"]
[WhiteElo "2036"]
[BlackElo "2146"]
[Annotator "ChessBase"]
[PlyCount "40"]
[EventDate "2017.??.??"]
[EventType "swiss"]
[EventCountry "ISR"]
[SourceTitle "playchess.com"]
[Source "ChessBase"]
[SourceQuality "1"]
[TimeControl "40/5400+30:1800+30"]

1. d4 {[%emt 0:40:12]} Nf6 {[%emt 0:40:52]} 2. c4 {[%emt 0:00:25]} c5 {[%emt 0:00:26]} 3. d5 {[%emt 0:00:26]} e6 {[%emt 0:00:29]} 4. Nc3 {[%emt 0:00:32]} exd5 {[%emt 0:00:27]} 5. cxd5 {[%emt 0:00:26]} d6 {[%emt 0:00:23]} 6. Nf3 {[%emt 0:00:24]} g6 {[%emt 0:00:26]} 7. Nd2 {[%emt 0:00:23]} Bg7 {[%emt 0:00:25]} 8. e4 {[%emt 0:00:23]} O-O {[%emt 0:00:30]} 9. Be2 {[%emt 0:00:24]} Re8 {[%emt 0:01:17]} 10. O-O {[%emt 0:00:29]} Nbd7 {[%emt 0:01:11]} 11. Qc2 {[%emt 0:00:28]} Ne5 {[%emt 0:03:20]} 12. b3 {[%emt 0:06:05]} g5 {[%emt 0:04:21]} 13. Bb2 {[%emt 0:05:51]} a6 {[%emt 0:03:55]} 14. a4 {[%emt 0:00:31]} Qe7 {[%emt 0:00:56]} 15. Rae1 {[%emt 0:06:15]} Rb8 {[%emt 0:02:09]} 16. a5 {[%emt 0:03:26]} Bd7 {[%emt 0:05:22]} 17. Nd1 {[%emt 0:02:42]} Ng6 {[%emt 0:04:49]} 18. Bc4 {[%emt 0:04:12]} Ng4 {[%emt 0:05:34]} 19. Bxg7 {[%emt 0:02:40]} Kxg7 {[%emt 0:00:33]} 20. Ne3 {[%emt 0:01:18]} Nxe3 {[%emt 0:01:02]} 1/2-1/2

[Event "Israel Team Ch Under 18"]
[Site "Jerusalem"]
[Date "2017.08.15"]
[Round "7"]
[White "Landau, Amit"]
[Black "Levy, Zohar"]
[Result "1-0"]
[ECO "A46"]
[WhiteElo "1965"]
[BlackElo "1709"]
[Annotator "NA RC"]
[PlyCount "111"]
[EventDate "2017.??.??"]
[EventType "swiss"]
[EventCountry "ISR"]
[SourceTitle "playchess.com"]
[Source "ChessBase"]
[SourceQuality "1"]
[TimeControl "40/5400+30:1800+30"]

1. d4 Nf6 2. Nf3 c5 3. e3 g6 4. c3 Bg7 5. Nbd2 cxd4 6. exd4 O-O 7. Bd3 Nc6 8. O-O d6 {A48: 1 d4 Nf6 2 Nf3 g6: Torre, London and Colle Systems} 9. Re1 Re8 (9... Qc7 10. Nc4 Bd7 11. h3 b5 12. Ne3 {0-1 (34) Kiewra,K (2421)-Erdos,V (2610) Biel 2015}) 10. Nc4 Bg4 (10... b5 $5 {[%cal Rb5c4]} 11. Ne3 b4 $14) 11. h3 Bd7 12. Bg5 $146 d5 13. Nce5 Be6 14. Bf4 Nxe5 15. Nxe5 Qb6 16. Qb3 Qxb3 17. axb3 Nd7 18. Bb5 Bxe5 19. Bxe5 a6 20. Bf1 Nxe5 21. Rxe5 Kf8 22. c4 dxc4 23. d5 Bd7 24. bxc4 Rac8 25. b4 Rc7 26. c5 Rd8 27. Be2 Ra8 (27... Be8 $11 {keeps the balance.}) 28. Bf3 Bb5 (28... Rb8 $16) 29. Re3 (29. d6 $142 Rd7 30. Rxe7 Rxe7 31. dxe7+ Kxe7 32. Bxb7) 29... Rd8 30. Rd1 a5 31. d6 exd6 32. cxd6 Rcd7 33. bxa5 Ba6 34. Rb3 Rxd6 35. Rxd6 Rxd6 36. Bxb7 Bxb7 37. Rxb7 Ke8 (37... Ra6 $16 {was worth a try.}) 38. Ra7 Rd7 39. Ra8+ Rd8 40. Rxd8+ Kxd8 41. f4 Kc7 42. Kf2 Kb7 43. Ke3 Ka6 $18 44. Ke4 Kxa5 45. Ke5 Kb5 46. Kf6 Kc5 47. Kxf7 Kd5 48. Kg7 Ke4 49. Kxh7 Kxf4 50. Kxg6 Kg3 51. Kg5 Kxg2 52. h4 Kg3 53. h5 Kf3 54. h6 Ke4 55. h7 Ke5 56. h8=Q+ 1-0